fUSD/lending_fUSD_20250826
["ID","MTS","AMOUNT","RATE_DAILY","PERIOD"]
[381495753,1756234247078,-376.020996,0.00022562,7]
[381495754,1756234247087,-508.540523,0.00022562,7]
[381495755,1756234247097,-173.124936,0.00022562,7]
[381495756,1756234247107,-376.020996,0.00022562,7]
[381495757,1756234247117,-508.540523,0.00022562,7]
[381495758,1756234247127,-173.124936,0.00022562,7]
[381495759,1756234247137,-157.800588,0.00022562,7]
[381495761,1756234247146,-173.124936,0.00022562,7]
[381495763,1756234247156,-304.028626,0.00022562,7]
[381495765,1756234247165,-151.0,0.00022562,7]
[381495767,1756234247174,-508.540523,0.00022562,7]
[381495769,1756234247184,-157.800588,0.00022562,7]
[381495770,1756234247193,-151.0,0.00022562,7]
[381495771,1756234247203,-304.028626,0.00022562,7]
[381495772,1756234247212,-151.0,0.00022562,7]
[381495773,1756234247221,-666.651429,0.00022562,7]
[381495774,1756234247231,-157.800588,0.00022562,7]
[381495775,1756234247240,-151.0,0.00022562,7]
[381495776,1756234247250,-304.028626,0.00022562,7]
[381495777,1756234247259,-151.0,0.00022562,7]
[381495778,1756234247269,-666.651429,0.00022562,7]
[381495779,1756234247278,-157.800588,0.00022562,7]
[381495780,1756234247288,-151.0,0.00022562,7]
[381495781,1756234247297,-301.791812,0.00022562,7]
[381495782,1756234247306,-304.028626,0.00022562,7]
[381495783,1756234247316,-269.206783,0.00022562,7]
[381495784,1756234247326,-666.651429,0.00022562,7]
[381495785,1756234247335,-151.0,0.00022562,7]
[381495786,1756234247345,-269.206783,0.00022562,7]
[381495787,1756234247354,-151.0,0.00022562,7]
[381495788,1756234247364,-666.651429,0.00022562,7]
[381495789,1756234247373,-151.0,0.00022562,7]
[381495791,1756234247382,-269.206783,0.00022562,7]
[381495793,1756234247392,-269.206783,0.00022562,7]
[381495795,1756234247402,-166.242368,0.00022562,7]
[381495797,1756234247412,-257.387354,0.00022562,7]
[381495799,1756234247422,-166.242368,0.00022562,7]
[381495801,1756234247432,-257.387354,0.00022562,7]
[381495803,1756234247441,-166.242368,0.00022562,7]
[381495804,1756234247451,-257.387354,0.00022562,7]
[381495805,1756234247461,-257.387354,0.00022562,7]
[381495806,1756234247470,-166.242368,0.00022562,7]
[381495807,1756234247479,-864.305514,0.00022562,7]
[381495808,1756234247489,-864.305514,0.00022562,7]
[381495809,1756234247498,-195.406268,0.00022562,7]
[381495810,1756234247507,-195.406268,0.00022562,7]
[381495811,1756234247518,-864.305514,0.00022562,7]
[381495812,1756234247528,-195.406268,0.00022562,7]
[381495813,1756234247537,-864.305514,0.00022562,7]
[381495814,1756234247547,-195.406268,0.00022562,7]
[381495815,1756234247557,-151.219948,0.00022562,7]
[381495816,1756234247568,-151.0,0.00022562,7]
[381495817,1756234247579,-151.0,0.00022562,7]
[381495818,1756234247589,-774.218462,0.00022562,7]
[381495819,1756234247599,-774.218462,0.00022562,7]
[381495820,1756234247609,-774.218462,0.00022562,7]
[381495821,1756234247619,-774.218462,0.00022562,7]
[381495822,1756234247630,-458.7662338,0.0002257,7]
[381495823,1756234247640,-233.06534235,0.00022599,4]
[381495824,1756234247650,-447.08,0.00022603,2]
[381495825,1756234247660,-200.0,0.0002261,7]
[381495826,1756234247669,-1800.0,0.00022637,2]
[381495827,1756234247679,-3000.0,0.00022637,2]
[381495828,1756234247689,-600.0,0.00022712,2]
[381495829,1756234247698,-206.0,0.00022795,3]
[381495830,1756234247709,-4719.96640142,0.000228,2]
[381495831,1756234247723,-200.0,0.0002281,7]
[381495832,1756234247732,-200.0,0.0002281,7]
[381495833,1756234247742,-2991.40736,0.0002282,2]
[381495834,1756234247751,-8310.14222251,0.00022853,2]
[381495835,1756234247763,-200.0,0.0002291,7]
[381495836,1756234247772,-652.44285119,0.0002297,2]
[381495837,1756234247782,-1600.0,0.0002297,2]
[381495838,1756234247793,-179.539765,0.0002297,7]
[381495839,1756234247802,-151.0,0.0002297,7]
[381495840,1756234247812,-151.0,0.0002297,7]
[381495841,1756234247822,-179.539765,0.0002297,7]
[381495842,1756234247832,-259.814887,0.0002297,7]
[381495843,1756234247841,-151.0,0.0002297,7]
[381495844,1756234247851,-151.0,0.0002297,7]
[381495845,1756234247860,-259.814887,0.0002297,7]
[381495846,1756234247869,-151.0,0.0002297,7]
[381495847,1756234247879,-151.0,0.0002297,7]
[381495848,1756234247889,-259.814887,0.0002297,7]
[381495849,1756234247899,-259.814887,0.0002297,7]
[381495850,1756234247908,-179.539765,0.0002297,7]
[381495851,1756234247918,-179.539765,0.0002297,7]
[381495852,1756234248048,-151.0,0.0002297,7]
[381495853,1756234248057,-151.0,0.0002297,7]
[381495854,1756234248068,-1449.758194,0.0002297,7]
[381495855,1756234248079,-151.0,0.0002297,7]
[381495856,1756234248089,-1449.758194,0.0002297,7]
[381495857,1756234248099,-1449.758194,0.0002297,7]
[381495859,1756234248110,-1449.758194,0.0002297,7]
[381495861,1756234248119,-552.98179,0.0002297,7]
[381495863,1756234248129,-552.98179,0.0002297,7]
[381495865,1756234248138,-552.98179,0.0002297,7]
[381495867,1756234248148,-552.98179,0.0002297,7]
[381495869,1756234248158,-151.0,0.0002297,7]
[381495870,1756234248168,-151.0,0.0002297,7]
[381495871,1756234248177,-151.0,0.0002297,7]
[381495872,1756234248187,-287.892273,0.0002297,7]
[381495873,1756234248197,-1696.425936,0.0002297,7]
[381495874,1756234248207,-1696.425936,0.0002297,7]
[381495875,1756234248217,-151.0,0.0002297,7]
[381495876,1756234248227,-1696.425936,0.0002297,7]
[381495877,1756234248237,-151.0,0.0002297,7]
[381495878,1756234248247,-1696.425936,0.0002297,7]
[381495879,1756234248258,-151.0,0.0002297,7]
[381495880,1756234248267,-152.362392,0.0002297,7]
[381495881,1756234248277,-708.708149,0.0002297,7]
[381495882,1756234248286,-708.708149,0.0002297,7]
[381495883,1756234248296,-708.708149,0.0002297,7]
[381495884,1756234248306,-708.708149,0.0002297,7]
[381495885,1756234248316,-151.0,0.0002297,7]
[381495886,1756234248325,-159.652401,0.0002297,7]
[381495887,1756234248335,-159.652401,0.0002297,7]
[381495888,1756234248345,-151.0,0.0002297,7]
[381495889,1756234248354,-398.543838,0.0002297,7]
[381495890,1756234248364,-159.652401,0.0002297,7]
[381495891,1756234248373,-151.0,0.0002297,7]
[381495892,1756234248383,-151.0,0.0002297,7]
[381495893,1756234248392,-398.543838,0.0002297,7]
[381495894,1756234248402,-151.0,0.0002297,7]
[381495895,1756234248411,-159.652401,0.0002297,7]
[381495896,1756234248421,-398.543838,0.0002297,7]
[381495897,1756234248430,-153.995177,0.0002297,7]
[381495898,1756234248440,-151.0,0.0002297,7]
[381495899,1756234248449,-153.995177,0.0002297,7]
[381495900,1756234248459,-151.0,0.0002297,7]
[381495902,1756234248468,-398.543838,0.0002297,7]
[381495903,1756234248477,-151.0,0.0002297,7]
[381495905,1756234248487,-153.995177,0.0002297,7]
[381495906,1756234248497,-151.0,0.0002297,7]
[381495907,1756234248507,-153.995177,0.0002297,7]
[381495909,1756234248516,-151.0,0.0002297,7]
[381495910,1756234248525,-151.0,0.0002297,7]
[381495911,1756234248535,-151.0,0.0002297,7]
[381495912,1756234248544,-151.0,0.0002297,7]
[381495913,1756234248553,-151.169936,0.0002297,7]
[381495914,1756234248563,-151.0,0.0002297,7]
[381495915,1756234248572,-151.0,0.0002297,7]
[381495916,1756234248583,-151.0,0.0002297,7]
[381495917,1756234248593,-151.0,0.0002297,7]
[381495918,1756234248603,-151.0,0.0002297,7]
[381495919,1756234248613,-151.0,0.0002297,7]
[381495920,1756234248622,-151.0,0.0002297,7]
[381495921,1756234248632,-156.933319,0.0002297,7]
[381495922,1756234248641,-965.30458,0.0002297,7]
[381495923,1756234248650,-965.30458,0.0002297,7]
[381495924,1756234248660,-965.30458,0.0002297,7]
[381495925,1756234248669,-965.30458,0.0002297,7]
[381495926,1756234248678,-151.0,0.0002297,7]
[381495927,1756234248688,-151.0,0.0002297,7]
[381495928,1756234248697,-151.0,0.0002297,7]
[381495929,1756234248707,-248.840196,0.0002297,7]
[381495930,1756234248719,-151.0,0.0002297,7]
[381495931,1756234248728,-151.0,0.0002297,7]
[381495932,1756234248738,-248.840196,0.0002297,7]
[381495933,1756234248747,-151.0,0.0002297,7]
[381495934,1756234248757,-151.0,0.0002297,7]
[381495935,1756234248767,-248.840196,0.0002297,7]
[381495936,1756234248776,-151.0,0.0002297,7]
[381495937,1756234248786,-151.0,0.0002297,7]
[381495938,1756234248798,-248.840196,0.0002297,7]
[381495939,1756234248808,-163.124851,0.0002297,7]
[381495940,1756234248818,-163.124851,0.0002297,7]
[381495941,1756234248827,-163.124851,0.0002297,7]
[381495942,1756234248836,-151.0,0.0002297,7]
[381495943,1756234248846,-694.195863,0.0002297,7]
[381495944,1756234248855,-163.124851,0.0002297,7]
[381495945,1756234248864,-694.195863,0.0002297,7]
[381495946,1756234248874,-304.087752,0.0002297,7]
[381495947,1756234248884,-304.087752,0.0002297,7]
[381495948,1756234248895,-694.195863,0.0002297,7]
[381495949,1756234248905,-304.087752,0.0002297,7]
[381495950,1756234248914,-694.195863,0.0002297,7]
[381495951,1756234248924,-318.427936,0.0002297,7]
[381495952,1756234248933,-304.087752,0.0002297,7]
[381495953,1756234248942,-318.427936,0.0002297,7]
[381495954,1756234248952,-224.588692,0.0002297,7]
[381495955,1756234248961,-318.427936,0.0002297,7]
[381495956,1756234248970,-224.588692,0.0002297,7]
[381495957,1756234248979,-318.427936,0.0002297,7]
[381495958,1756234248989,-192.992108,0.0002297,7]
[381495959,1756234248998,-224.588692,0.0002297,7]
[381495960,1756234249008,-192.992108,0.0002297,7]
[381495961,1756234249017,-192.992108,0.0002297,7]
[381495962,1756234249027,-151.0,0.0002297,7]
[381495963,1756234249036,-192.992108,0.0002297,7]
[381495964,1756234249046,-224.588692,0.0002297,7]
[381495965,1756234249055,-151.0,0.0002297,7]
[381495966,1756234249064,-151.0,0.0002297,7]
[381495967,1756234249074,-151.0,0.0002297,7]
[381495968,1756234249085,-1074.983575,0.0002297,7]
[381495969,1756234249095,-151.0,0.0002297,7]
[381495970,1756234249104,-450.510635,0.0002297,7]
[381495971,1756234249113,-151.0,0.0002297,7]
[381495972,1756234249123,-151.0,0.0002297,7]
[381495973,1756234249132,-450.510635,0.0002297,7]
[381495974,1756234249142,-151.0,0.0002297,7]
[381495975,1756234249151,-450.510635,0.0002297,7]
[381495976,1756234249161,-1074.983575,0.0002297,7]
[381495977,1756234249170,-450.510635,0.0002297,7]
[381495978,1756234249180,-1074.983575,0.0002297,7]
[381495979,1756234249190,-1074.983575,0.0002297,7]
[381495980,1756234249199,-1619.59,0.00023,2]
[381495981,1756234249209,-746.0,0.00023,2]
[381495982,1756234249219,-4000.0,0.00023,4]
[381495983,1756234249229,-194.72792766,0.00023014,2]
[381495984,1756234249238,-180.0,0.00023021,2]
[381495985,1756234249247,-16769.0,0.000231,2]
[381495986,1756234249257,-3292.0,0.00023105,2]
[381495987,1756234249266,-600.0,0.0002326,2]
[381495988,1756234249276,-1000.0,0.00023262,2]
[381495989,1756234249285,-1548.22,0.000233,7]
[381495990,1756234249295,-36013.6,0.000233,2]
[381495991,1756234249304,-5547.38,0.000233,7]
[381495992,1756234249313,-77452.36,0.000233,7]
[381495993,1756234249322,-151.0,0.000233,7]
[381495994,1756234249332,-151.0,0.000233,7]
[381495995,1756234249342,-151.0,0.000233,7]
[381495996,1756234249351,-151.0,0.000233,7]
[381495997,1756234249360,-259.101129,0.000233,7]
[381495998,1756234249369,-151.184429,0.000233,7]
[381495999,1756234249378,-151.0,0.000233,7]
[381496000,1756234249388,-151.0,0.000233,7]
[381496001,1756234249397,-151.0,0.000233,7]
[381496002,1756234249406,-281.114838,0.000233,7]
[381496003,1756234249414,-159.901781,0.000233,7]
[381496004,1756234249423,-151.0,0.000233,7]
[381496005,1756234249433,-151.0,0.000233,7]
[381496006,1756234249442,-151.0,0.000233,7]
[381496007,1756234249451,-151.0,0.000233,7]
[381496008,1756234249460,-151.0,0.000233,7]
[381496009,1756234249469,-727.607955,0.000233,7]
[381496010,1756234249478,-151.0,0.000233,7]
[381496011,1756234249487,-727.607955,0.000233,7]
[381496012,1756234249496,-151.0,0.000233,7]
[381496013,1756234249505,-727.607955,0.000233,7]
[381496014,1756234249514,-727.607955,0.000233,7]
[381496015,1756234249523,-151.0,0.000233,7]
[381496016,1756234249532,-151.0,0.000233,7]
[381496017,1756234249541,-479.173329,0.000233,7]
[381496018,1756234249550,-151.0,0.000233,7]
[381496019,1756234249559,-479.173329,0.000233,7]
[381496020,1756234249568,-181.105141,0.000233,7]
[381496021,1756234249577,-479.173329,0.000233,7]
[381496022,1756234249586,-181.105141,0.000233,7]
[381496023,1756234249595,-479.173329,0.000233,7]
[381496024,1756234249604,-181.105141,0.000233,7]
[381496025,1756234249614,-181.105141,0.000233,7]
[381496026,1756234249623,-877.356607,0.000233,7]
[381496027,1756234249633,-877.356607,0.000233,7]
[381496028,1756234249642,-877.356607,0.000233,7]
[381496029,1756234249652,-877.356607,0.000233,7]
[381496030,1756234249661,-151.0,0.000233,7]
[381496031,1756234249670,-151.0,0.000233,7]
[381496032,1756234249679,-151.0,0.000233,7]
[381496033,1756234249687,-151.0,0.000233,7]
[381496034,1756234249696,-231.183159,0.000233,7]
[381496035,1756234249705,-154.06167,0.000233,7]
[381496036,1756234249718,-231.183159,0.000233,7]
[381496037,1756234249728,-231.183159,0.000233,7]
[381496038,1756234249738,-231.183159,0.000233,7]
[381496039,1756234249748,-1500.0,0.00023303,2]
[381496040,1756234249758,-383.49,0.00023328,2]
[381496041,1756234249767,-1520.02,0.00023479,2]
[381496042,1756234249776,-5510.0,0.000235,3]
[381496043,1756234249787,-844.63891918,0.000235,3]
[381496044,1756234249796,-458.7662338,0.000235,3]
[381496045,1756234249807,-160.0,0.000235,3]
[381496046,1756234249817,-160.0,0.000235,3]
[381496047,1756234249827,-212.18043798,0.000235,3]
[381496048,1756234249836,-200.0,0.0002351,7]
[381496049,1756234249845,-359.76179104,0.00023545,2]
[381496050,1756234249855,-298.26089446,0.00023545,2]
[381496051,1756234249866,-142269.47,0.00023562,7]
[381496052,1756234249875,-151.0,0.00023562,7]
[381496053,1756234249885,-151.0,0.00023562,7]
[381496054,1756234249894,-151.0,0.00023562,7]
[381496055,1756234249904,-276.051864,0.00023562,7]
[381496056,1756234249913,-151.0,0.00023562,7]
[381496057,1756234249922,-151.0,0.00023562,7]
[381496058,1756234249931,-151.0,0.00023562,7]
[381496059,1756234249941,-8212.703629,0.00023562,7]
[381496060,1756234249950,-8212.703629,0.00023562,7]
[381496061,1756234249959,-425.180795,0.00023562,7]
[381496062,1756234249968,-151.0,0.00023562,7]
[381496063,1756234249977,-8212.703629,0.00023562,7]
[381496064,1756234249987,-425.180795,0.00023562,7]
[381496065,1756234249996,-1918.67873,0.00023562,7]
[381496066,1756234250006,-8212.703629,0.00023562,7]
[381496067,1756234250015,-1918.67873,0.00023562,7]
[381496068,1756234250024,-425.180795,0.00023562,7]
[381496069,1756234250034,-554.651578,0.00023562,7]
[381496070,1756234250045,-403.039769,0.00023562,7]
[381496071,1756234250054,-1918.67873,0.00023562,7]
[381496072,1756234250064,-425.180795,0.00023562,7]
[381496073,1756234250073,-151.0,0.00023562,7]
[381496074,1756234250083,-151.0,0.00023562,7]
[381496075,1756234250092,-1918.67873,0.00023562,7]
[381496076,1756234250102,-403.039769,0.00023562,7]
[381496077,1756234250112,-554.651578,0.00023562,7]
[381496078,1756234250122,-151.0,0.00023562,7]
[381496079,1756234250132,-151.0,0.00023562,7]
[381496080,1756234250141,-554.651578,0.00023562,7]
[381496081,1756234250150,-403.039769,0.00023562,7]
[381496082,1756234250159,-197.634869,0.00023562,7]
[381496083,1756234250168,-151.0,0.00023562,7]
[381496084,1756234250177,-554.651578,0.00023562,7]
[381496085,1756234250186,-403.039769,0.00023562,7]
[381496086,1756234250195,-197.634869,0.00023562,7]
[381496087,1756234250204,-3216.825123,0.00023562,7]
[381496088,1756234250214,-201.93286099,0.00023562,2]
[381496089,1756234250223,-327.0,0.0002372,2]
[381496090,1756234250232,-327.0,0.0002372,2]
[381496091,1756234250241,-327.0,0.0002372,2]
[381496092,1756234250250,-327.0,0.0002372,2]
[381496093,1756234250259,-327.0,0.0002372,2]
[381496094,1756234250268,-327.0,0.0002372,2]
[381496095,1756234250278,-327.0,0.0002372,2]
[381496096,1756234250287,-327.0,0.0002372,2]
[381496097,1756234250296,-327.0,0.0002372,2]
[381496098,1756234250306,-327.0,0.0002372,2]
[381496099,1756234250315,-327.0,0.0002372,2]
[381496100,1756234250324,-327.0,0.0002372,2]
[381496101,1756234250334,-327.0,0.0002372,2]
[381496102,1756234250343,-327.0,0.0002372,2]
[381496103,1756234250352,-600.0,0.00023721,2]
[381496104,1756234250361,-600.0,0.00023721,2]
[381496105,1756234250370,-600.0,0.00023721,2]
[381496106,1756234250379,-600.0,0.00023721,2]
[381496107,1756234250388,-600.0,0.00023721,2]
[381496108,1756234250397,-600.0,0.00023721,2]
[381496109,1756234250406,-600.0,0.00023721,2]
[381496110,1756234250416,-600.0,0.00023721,2]
[381496111,1756234250426,-600.0,0.00023721,2]
[381496112,1756234250435,-600.0,0.00023721,2]
[381496113,1756234250444,-600.0,0.00023721,2]
[381496114,1756234250453,-600.0,0.00023721,2]
[381496115,1756234250463,-600.0,0.00023721,2]
[381496116,1756234250471,-600.0,0.00023721,2]
[381496117,1756234250480,-327.0,0.00023724,2]
[381496118,1756234250490,-327.0,0.00023724,2]
[381496119,1756234250499,-327.0,0.00023724,2]
[381496120,1756234250509,-327.0,0.00023724,2]
[381496121,1756234250518,-327.0,0.00023724,2]
[381496122,1756234250527,-327.0,0.00023724,2]
[381496123,1756234250536,-327.0,0.00023724,2]
[381496124,1756234250545,-327.0,0.00023724,2]
[381496125,1756234250554,-327.0,0.00023724,2]
[381496126,1756234250563,-327.0,0.00023724,2]
[381496127,1756234250573,-327.0,0.00023724,2]
[381496128,1756234250582,-327.0,0.00023724,2]
[381496129,1756234250591,-327.0,0.00023724,2]
[381496130,1756234250603,-327.0,0.00023724,2]
[381496131,1756234250613,-600.0,0.00023725,2]
[381496132,1756234250622,-600.0,0.00023725,2]
[381496133,1756234250631,-600.0,0.00023725,2]
[381496134,1756234250640,-600.0,0.00023725,2]
[381496135,1756234250650,-600.0,0.00023725,2]
[381496136,1756234250659,-600.0,0.00023725,2]
[381496137,1756234250669,-600.0,0.00023725,2]
[381496138,1756234250679,-600.0,0.00023725,2]
[381496139,1756234250688,-600.0,0.00023725,2]
[381496140,1756234250697,-600.0,0.00023725,2]
[381496141,1756234250706,-600.0,0.00023725,2]
[381496142,1756234250717,-600.0,0.00023725,2]
[381496143,1756234250727,-600.0,0.00023725,2]
[381496144,1756234250736,-600.0,0.00023725,2]
[381496145,1756234250745,-616.48,0.00023726,2]
[381496146,1756234250754,-327.0,0.00023729,2]
[381496147,1756234250765,-327.0,0.00023729,2]
[381496148,1756234250775,-327.0,0.00023729,2]
[381496149,1756234250785,-327.0,0.00023729,2]
[381496150,1756234250796,-327.0,0.00023729,2]
[381496151,1756234250806,-327.0,0.00023729,2]
[381496152,1756234250816,-327.0,0.00023729,2]
[381496153,1756234250826,-327.0,0.00023729,2]
[381496154,1756234250835,-327.0,0.00023729,2]
[381496155,1756234250844,-327.0,0.00023729,2]
[381496156,1756234250855,-327.0,0.00023729,2]
[381496157,1756234250865,-327.0,0.00023729,2]
[381496158,1756234250875,-327.0,0.00023729,2]
[381496159,1756234250884,-327.0,0.00023729,2]
[381496160,1756234250894,-600.0,0.0002373,2]
[381496161,1756234250903,-600.0,0.0002373,2]
[381496162,1756234250913,-600.0,0.0002373,2]
[381496163,1756234250922,-600.0,0.0002373,2]
[381496164,1756234250932,-600.0,0.0002373,2]
[381496165,1756234250941,-600.0,0.0002373,2]
[381496166,1756234250951,-600.0,0.0002373,2]
[381496167,1756234250961,-600.0,0.0002373,2]
[381496168,1756234250970,-600.0,0.0002373,2]
[381496169,1756234250980,-600.0,0.0002373,2]
[381496170,1756234250989,-600.0,0.0002373,2]
[381496171,1756234250999,-600.0,0.0002373,2]
[381496172,1756234251008,-600.0,0.0002373,2]
[381496173,1756234251018,-600.0,0.0002373,2]
[381496174,1756234251027,-1800.0,0.00023733,2]
[381496175,1756234251037,-3000.0,0.00023733,2]
[381496176,1756234251046,-327.0,0.00023734,2]
[381496177,1756234251056,-327.0,0.00023734,2]
[381496178,1756234251066,-327.0,0.00023734,2]
[381496179,1756234251076,-327.0,0.00023734,2]
[381496180,1756234251086,-327.0,0.00023734,2]
[381496181,1756234251096,-327.0,0.00023734,2]
[381496182,1756234251105,-327.0,0.00023734,2]
[381496183,1756234251116,-327.0,0.00023734,2]
[381496184,1756234251126,-327.0,0.00023734,2]
[381496185,1756234251135,-327.0,0.00023734,2]
[381496186,1756234251144,-327.0,0.00023734,2]
[381496187,1756234251154,-327.0,0.00023734,2]
[381496188,1756234251163,-327.0,0.00023734,2]
[381496189,1756234251172,-327.0,0.00023734,2]
[381496190,1756234251182,-600.0,0.00023734,2]
[381496191,1756234251191,-600.0,0.00023734,2]
[381496192,1756234251200,-600.0,0.00023734,2]
[381496193,1756234251210,-600.0,0.00023734,2]
[381496194,1756234251219,-600.0,0.00023734,2]
[381496195,1756234251228,-600.0,0.00023734,2]
[381496196,1756234251236,-600.0,0.00023734,2]
[381496197,1756234251246,-600.0,0.00023734,2]
[381496198,1756234251256,-600.0,0.00023734,2]
[381496199,1756234251265,-600.0,0.00023734,2]
[381496200,1756234251274,-600.0,0.00023734,2]
[381496201,1756234251287,-600.0,0.00023734,2]
[381496202,1756234251307,-600.0,0.00023734,2]
[381496203,1756234251331,-600.0,0.00023734,2]
[381496204,1756234251342,-155.4,0.00023768,2]
[381496205,1756234251351,-600.0,0.00023808,2]
[381496206,1756234251361,-200.0,0.0002381,7]
[381496207,1756234251370,-200.0,0.0002381,7]
[381496208,1756234251379,-5510.0,0.000239,5]
[381496209,1756234251388,-500.0,0.0002397,2]
[381496210,1756234251397,-1000.0,0.0002397,2]
[381496211,1756234251406,-4000.0,0.00024,4]
[381496212,1756234251415,-844.63891918,0.00024,7]
[381496213,1756234251424,-160.0,0.00024,7]
[381496214,1756234251433,-160.0,0.00024,7]
[381496215,1756234251442,-1256.0,0.00024048,2]
[381496216,1756234251451,-926.0,0.00024048,2]
[381496217,1756234251460,-2031.0,0.00024048,2]
[381496218,1756234251469,-3374.0,0.00024048,2]
[381496219,1756234251478,-566.0,0.00024048,2]
[381496220,1756234251487,-1658.0,0.00024048,2]
[381496221,1756234251496,-599.0,0.00024048,2]
[381496222,1756234251505,-1298.0,0.00024048,2]
[381496223,1756234251514,-718.0,0.00024048,2]
[381496224,1756234251523,-4155.0,0.00024048,2]
[381496225,1756234251534,-6146.0,0.00024048,2]
[381496226,1756234251554,-21104.0,0.00024048,2]
[381496227,1756234251576,-209.40437684,0.0002411,2]
[381496228,1756234251588,-731.0,0.0002418,2]
[381496229,1756234251598,-600.0,0.00024356,2]
[381496230,1756234251607,-1548.22,0.000245,7]
[381496231,1756234251618,-36013.6,0.000245,2]
[381496232,1756234251629,-5547.38,0.000245,7]
[381496233,1756234251639,-77452.36,0.000245,7]
[381496234,1756234251651,-1105.580744,0.000245,7]
[381496235,1756234251660,-1105.580744,0.000245,7]
[381496236,1756234251670,-1105.580744,0.000245,7]
[381496237,1756234251679,-301.737078,0.000245,7]
[381496238,1756234251688,-1105.580744,0.000245,7]
[381496239,1756234251697,-301.737078,0.000245,7]
[381496240,1756234251707,-301.737078,0.000245,7]
[381496241,1756234251718,-151.0,0.000245,7]
[381496242,1756234251728,-301.737078,0.000245,7]
[381496243,1756234251737,-151.0,0.000245,7]
[381496244,1756234251746,-151.0,0.000245,7]
[381496245,1756234251755,-181.265247,0.000245,7]
[381496246,1756234251765,-1905.919141,0.000245,7]
[381496247,1756234251774,-535.867484,0.000245,7]
[381496248,1756234251783,-1905.919141,0.000245,7]
[381496249,1756234251793,-1012.644171,0.000245,7]
[381496250,1756234251802,-1905.919141,0.000245,7]
[381496251,1756234251812,-535.867484,0.000245,7]
[381496252,1756234251821,-160.045092,0.000245,7]
[381496253,1756234251831,-1012.644171,0.000245,7]
[381496254,1756234251840,-1905.919141,0.000245,7]
[381496255,1756234251849,-535.867484,0.000245,7]
[381496256,1756234251858,-160.045092,0.000245,7]
[381496257,1756234251868,-1012.644171,0.000245,7]
[381496258,1756234251877,-151.0,0.000245,7]
[381496259,1756234251886,-376.020996,0.000245,7]
[381496260,1756234251896,-535.867484,0.000245,7]
[381496261,1756234251904,-160.045092,0.000245,7]
[381496262,1756234251913,-1012.644171,0.000245,7]
[381496263,1756234251923,-151.0,0.000245,7]
[381496264,1756234251932,-151.0,0.000245,7]
[381496265,1756234251941,-508.540523,0.000245,7]
[381496266,1756234251950,-376.020996,0.000245,7]
[381496267,1756234251959,-173.124936,0.000245,7]
[381496268,1756234251970,-160.045092,0.000245,7]
[381496269,1756234251979,-151.0,0.000245,7]
[381496270,1756234251990,-376.020996,0.000245,7]
[381496271,1756234252002,-508.540523,0.000245,7]
[381496272,1756234252012,-173.124936,0.000245,7]
[381496273,1756234252022,-508.540523,0.000245,7]